bitfinex-derivatives/quotes_BTCF0:USTF0_20250929
["timestamp","ask_amount","ask_price","bid_price","bid_amount"]
[1759158608865,0.008,114040.0,114030.0,0.83173649]
[1759158609263,0.02867677,114040.0,114030.0,0.83173649]
[1759158610068,0.008,114040.0,114030.0,0.83173649]
[1759158610866,0.02875277,114040.0,114030.0,0.83173649]
[1759158611063,0.11638297,114040.0,114030.0,0.4828979]
[1759158611672,0.11638297,114040.0,114030.0,0.83173649]
[1759158611866,0.11638297,114040.0,114030.0,0.4828979]
[1759158612066,0.11638297,114040.0,114030.0,0.83173649]
[1759158613978,0.11638297,114040.0,114030.0,0.4828979]
[1759158614176,0.11638297,114040.0,114030.0,0.83173649]
[1759158614572,0.11638297,114040.0,114030.0,0.4828979]
[1759158615580,0.46522156,114040.0,114030.0,0.4828979]
[1759158615972,0.37759136,114040.0,114030.0,0.4828979]
[1759158616275,0.02875277,114040.0,114030.0,0.4828979]
[1759158616976,0.02875277,114040.0,114030.0,0.87899626]
[1759158617269,0.02875277,114040.0,114030.0,0.83173649]
[1759158618173,0.008,114040.0,114030.0,1.18057508]
[1759158618479,0.003,114040.0,114030.0,1.64344353]
[1759158619574,0.003,114040.0,114030.0,1.58057508]
[1759158619774,0.003,114040.0,114030.0,1.58912063]
[1759158619971,0.003,114040.0,114030.0,1.65198908]
[1759158620176,0.06844146,114050.0,114040.0,0.1228802]
[1759158620480,1.7204916,114070.0,114060.0,0.1228648]
[1759158620780,1.74093423,114070.0,114060.0,0.1228648]
[1759158620982,0.91725503,114070.0,114060.0,0.1228648]
[1759158621178,1.26609362,114070.0,114060.0,0.1228648]
[1759158621378,1.72553362,114070.0,114060.0,0.1228648]
[1759158621681,1.28884263,114070.0,114060.0,0.4836648]
[1759158622074,0.82668122,114070.0,114060.0,0.4836648]
[1759158622274,0.02944263,114070.0,114060.0,0.4836648]
[1759158622474,0.02044263,114070.0,114060.0,0.4836648]
[1759158622980,0.03244263,114070.0,114060.0,0.4876648]
[1759158623277,0.12004973,114070.0,114060.0,0.4876648]
[1759158623475,0.04110632,114070.0,114060.0,0.4876648]
[1759158623676,0.03244263,114070.0,114060.0,0.83650339]
[1759158624186,0.03244263,114070.0,114060.0,1.65646339]
[1759158624481,0.03244263,114070.0,114060.0,1.65630339]
[1759158624682,0.03244263,114070.0,114060.0,0.83650339]
[1759158624878,0.03244263,114070.0,114060.0,1.65630339]
[1759158625075,0.04117945,114070.0,114060.0,1.65630339]
[1759158625586,0.02073682,114070.0,114060.0,1.65630339]
[1759158626076,0.02073682,114070.0,114060.0,0.83650339]
[1759158626382,0.02073682,114070.0,114060.0,1.65582339]
[1759158627284,0.012,114070.0,114060.0,1.70294075]
[1759158627479,0.012,114070.0,114060.0,2.10294075]
[1759158627686,0.02069307,114070.0,114060.0,2.10294075]
[1759158627986,0.02069307,114070.0,114060.0,2.05582339]
[1759158628380,0.02069307,114070.0,114060.0,2.10292274]
[1759158628581,0.012,114070.0,114060.0,2.10292274]
[1759158630089,0.012,114070.0,114060.0,2.10252274]
[1759158630887,0.012,114070.0,114060.0,1.81216133]
[1759158631182,0.012,114070.0,114060.0,1.93498613]
[1759158632187,0.012,114070.0,114060.0,1.11610613]
[1759158632687,0.012,114070.0,114060.0,1.93498613]
[1759158632990,0.012,114070.0,114060.0,1.11610613]
[1759158633190,0.012,114070.0,114060.0,1.93498613]
[1759158633891,0.012,114070.0,114060.0,1.11610613]
[1759158634085,0.012,114070.0,114060.0,1.93494613]
[1759158634781,0.17549661,114070.0,114060.0,1.93494613]
[1759158636392,0.17549661,114070.0,114060.0,1.11610613]
[1759158636791,0.17549661,114070.0,114060.0,1.93490613]
[1759158636988,0.17549661,114070.0,114060.0,1.11610613]
[1759158637394,0.17549661,114070.0,114060.0,1.93490613]
[1759158637588,0.17549661,114070.0,114060.0,1.11610613]
[1759158637789,0.17549661,114070.0,114060.0,1.93490613]
[1759158638101,0.17549661,114070.0,114060.0,1.11610613]
[1759158638293,0.17549661,114070.0,114060.0,1.93490613]
[1759158638491,0.17549661,114070.0,114060.0,1.11610613]
[1759158638794,0.5455552,114070.0,114060.0,1.17816819]
[1759158639195,0.19671661,114070.0,114060.0,0.9416648]
[1759158639392,0.03322,114070.0,114060.0,0.47170339]
[1759158639589,0.03322,114070.0,114060.0,0.9416648]
[1759158639791,0.5455552,114070.0,114060.0,0.1228648]
[1759158639991,0.5455552,114070.0,114060.0,0.9416248]
[1759158640390,0.19671661,114070.0,114060.0,0.9416248]
[1759158640594,0.03322,114070.0,114060.0,0.1228648]
[1759158640795,0.03322,114070.0,114060.0,0.9416248]
[1759158640993,0.6331624,114070.0,114060.0,0.1228648]
[1759158641194,0.02122,114060.0,114050.0,0.16996665]
[1759158641399,0.5335552,114060.0,114050.0,0.16996665]
[1759158641895,0.37005859,114060.0,114050.0,0.16996665]
[1759158642296,0.71865044,114060.0,114050.0,0.16996665]
[1759158642498,0.73365044,114060.0,114050.0,0.16996665]
[1759158643504,0.72565044,114060.0,114050.0,0.16996665]
[1759158644502,1.17406534,114060.0,114050.0,0.16996665]
[1759158644797,1.74859195,114060.0,114050.0,0.1228673]
[1759158645004,1.74859195,114060.0,114050.0,0.1098273]
[1759158645894,1.74859195,114060.0,114050.0,0.0876173]
[1759158646399,1.24994705,114060.0,114050.0,0.16996665]
[1759158646606,1.73756185,114060.0,114050.0,0.16996665]
[1759158647906,1.74859185,114060.0,114050.0,0.15693175]
[1759158648106,2.56731185,114060.0,114050.0,0.13472175]
[1759158649003,1.74859185,114060.0,114050.0,0.13472175]
[1759158649203,2.56731185,114060.0,114050.0,0.13472175]
[1759158649399,1.74859185,114060.0,114050.0,0.13472175]
[1759158649706,2.56731185,114060.0,114050.0,0.13472175]
[1759158650502,2.56731185,114060.0,114050.0,0.15675175]
[1759158650699,2.56731185,114060.0,114050.0,0.13472175]
[1759158650900,2.91602707,114060.0,114050.0,0.13472175]
[1759158651602,2.91602707,114060.0,114050.0,0.04709935]
[1759158651810,3.36442707,114060.0,114050.0,0.04709935]
[1759158652005,0.0876224,114050.0,114040.0,0.0876245]
[1759158652311,1.16889284,114050.0,114040.0,0.0876245]
[1759158652506,1.33238945,114050.0,114040.0,0.0876245]
[1759158652905,1.73238945,114050.0,114040.0,0.0876245]
[1759158653704,1.73638945,114050.0,114040.0,0.0876245]
[1759158654208,1.73238945,114050.0,114040.0,0.0876245]
[1759158654409,0.1217001,114040.0,114030.0,0.17253145]
[1759158654609,1.99865054,114040.0,114030.0,0.15050145]
[1759158654808,1.34342715,114040.0,114030.0,0.17253145]
[1759158655017,2.16214715,114040.0,114030.0,0.17253145]
[1759158655309,1.34342715,114040.0,114030.0,0.08489845]
[1759158655509,1.24476705,114040.0,114030.0,0.1230678]
[1759158655720,1.46168671,114040.0,114030.0,0.1230678]
[1759158656014,1.32138275,114040.0,114030.0,0.1230678]
[1759158656209,2.14410275,114040.0,114030.0,0.1230678]
[1759158656411,1.32538275,114040.0,114030.0,0.1230678]
[1759158656612,0.97666753,114040.0,114030.0,0.87178302]
[1759158656913,0.95362753,114040.0,114030.0,0.87178302]
[1759158657103,0.97666753,114040.0,114030.0,0.87178302]
[1759158657610,0.97666753,114040.0,114030.0,0.5230678]
[1759158657813,0.97666753,114040.0,114030.0,0.87178302]
[1759158658813,1.06429763,114040.0,114030.0,0.5230678]
[1759158659014,0.97666753,114040.0,114030.0,0.87178302]
[1759158659613,0.97666753,114040.0,114030.0,0.5230678]
[1759158659817,1.41301285,114040.0,114030.0,0.87178302]
[1759158660010,1.06429763,114040.0,114030.0,0.5230678]
[1759158660314,0.97666753,114040.0,114030.0,0.1230678]
[1759158660715,0.97666753,114040.0,114030.0,0.18593625]
[1759158661016,0.97666753,114040.0,114030.0,0.53465147]
[1759158662017,0.97666753,114040.0,114030.0,0.18593625]
[1759158662232,0.97666753,114040.0,114030.0,0.53465147]
[1759158662814,0.97666753,114040.0,114030.0,0.18593625]
[1759158663013,0.97666753,114040.0,114030.0,0.53465147]
[1759158663412,0.62795231,114040.0,114030.0,0.53465147]
[1759158663717,0.97666753,114040.0,114030.0,0.53465147]
[1759158664121,0.62795231,114040.0,114030.0,0.53465147]
[1759158664414,0.97666753,114040.0,114030.0,0.53465147]
[1759158666319,0.97666753,114040.0,114030.0,0.47178302]
[1759158666711,0.97666753,114040.0,114030.0,0.1230678]
[1759158666910,0.99732818,114040.0,114030.0,0.47178302]
[1759158667308,1.4336736,114040.0,114030.0,0.1230678]
[1759158668518,1.4447036,114040.0,114030.0,0.02203]
[1759158668719,1.4447036,114040.0,114030.0,0.1096678]
[1759158668916,1.4336736,114040.0,114030.0,0.1096678]
[1759158669225,1.4336736,114040.0,114030.0,0.1230678]
[1759158669715,1.41301295,114040.0,114030.0,0.1230678]
[1759158670117,0.71558251,114040.0,114030.0,0.1230678]
[1759158670323,1.41301295,114040.0,114030.0,0.1230678]
[1759158671323,1.41301285,114040.0,114030.0,0.1230678]
[1759158671521,2.23161285,114040.0,114030.0,0.1230678]
[1759158672722,2.23157285,114040.0,114030.0,0.1230678]
[1759158673316,2.23157285,114040.0,114030.0,0.03543]
[1759158673517,2.23157285,114040.0,114030.0,0.02203]
[1759158674619,2.23157285,114040.0,114030.0,0.0876378]
[1759158675116,0.1098578,114030.0,114020.0,0.17091223]
[1759158675424,0.98286963,114030.0,114020.0,0.17091223]
[1759158675629,0.89523183,114030.0,114020.0,0.17091223]
[1759158676124,0.98286963,114030.0,114020.0,0.17091223]
[1759158676326,0.98786963,114030.0,114020.0,0.17091223]
[1759158676519,0.63915441,114030.0,114020.0,0.17091223]
[1759158676718,1.71875183,114030.0,114020.0,0.17091223]
[1759158676918,0.90423183,114030.0,114020.0,0.17191223]
[1759158677120,1.72275183,114030.0,114020.0,0.12471766]
[1759158677321,1.73164259,114030.0,114020.0,0.12471766]
[1759158677524,0.91312259,114030.0,114020.0,0.47343288]
[1759158677724,1.73160259,114030.0,114020.0,0.47343288]
[1759158678121,1.73160259,114030.0,114020.0,0.12471766]
[1759158679131,1.73160259,114030.0,114020.0,0.17191223]
[1759158679327,2.16795561,114030.0,114020.0,0.12472446]
[1759158679729,2.16795561,114030.0,114020.0,0.17191903]
[1759158680230,2.16795561,114030.0,114020.0,0.12472446]
[1759158680533,2.16795561,114030.0,114020.0,0.17191903]
[1759158680835,2.16795561,114030.0,114020.0,0.12472446]
[1759158681333,2.16795561,114030.0,114020.0,0.11168446]
[1759158682435,2.16795561,114030.0,114020.0,0.08871446]
[1759158682630,1.47052517,114030.0,114020.0,0.08871446]
[1759158682935,2.16795561,114030.0,114020.0,0.08871446]
[1759158684531,2.16795561,114030.0,114020.0,0.11077446]
[1759158684736,2.16795561,114030.0,114020.0,0.08871446]
[1759158686832,2.56795561,114030.0,114020.0,0.08871446]
[1759158687540,2.58808315,114030.0,114020.0,0.08871446]
[1759158688531,2.58808442,114030.0,114020.0,0.08871446]
[1759158689336,1.76960442,114030.0,114020.0,0.08871446]
[1759158689634,2.58788442,114030.0,114020.0,0.08871446]
[1759158689834,2.56775561,114030.0,114020.0,0.08871446]
[1759158690042,2.58788548,114030.0,114020.0,0.08871446]
[1759158690340,1.76960548,114030.0,114020.0,0.11077446]
[1759158690535,2.48011781,114030.0,114020.0,0.11077446]
[1759158690735,2.58788509,114030.0,114020.0,0.12359446]
[1759158690938,2.56775561,114030.0,114020.0,0.12359446]
[1759158691434,1.74947561,114030.0,114020.0,0.12359446]
[1759158691636,2.48007781,114030.0,114020.0,0.12359446]
[1759158691948,2.56771561,114030.0,114020.0,0.11077446]
[1759158692441,1.05204517,114030.0,114020.0,0.11077446]
[1759158692643,2.21900039,114030.0,114020.0,0.11077446]
[1759158693143,2.23914119,114030.0,114020.0,0.11077446]
[1759158693737,1.42090119,114030.0,114020.0,0.11077446]
[1759158693940,1.76961641,114030.0,114020.0,0.11077446]
[1759158694137,2.58781641,114030.0,114020.0,0.11077446]
[1759158694837,2.58781641,114030.0,114020.0,0.08871446]
[1759158695039,2.58781641,114030.0,114020.0,0.00106896]
[1759158695235,2.58781641,114030.0,114020.0,0.08871446]
[1759158696337,2.58781641,114030.0,114020.0,0.00106896]
[1759158696542,2.58781641,114030.0,114020.0,0.08871446]
[1759158697437,2.58781641,114030.0,114020.0,0.00106896]
[1759158698640,2.58781641,114030.0,114010.0,0.13484777]
[1759158698641,0.1217855,114020.0,114010.0,0.13484777]
[1759158698944,1.20015674,114020.0,114010.0,0.13484777]
[1759158699140,1.36365335,114020.0,114010.0,0.13484777]
[1759158699537,1.18001594,114020.0,114010.0,0.13484777]
[1759158699737,1.20025898,114020.0,114010.0,0.04719457]
[1759158699947,2.19683559,114020.0,114010.0,0.04819457]
[1759158700150,1.37875559,114020.0,114010.0,0.13584777]
[1759158700340,2.19683559,114020.0,114010.0,0.13584777]
[1759158700545,2.03333898,114020.0,114010.0,0.13584777]
[1759158701448,2.03333698,114020.0,114010.0,0.13584777]
[1759158701749,2.48173698,114020.0,114010.0,0.13584777]
[1759158702246,2.4615649,114020.0,114010.0,0.13584777]
[1759158702843,2.48143125,114020.0,114010.0,0.13584777]
[1759158703243,2.48143202,114020.0,114010.0,0.13584777]
[1759158703944,2.48139202,114020.0,114010.0,0.13584777]
[1759158704349,2.11315161,114020.0,114010.0,0.13584777]
[1759158704551,2.11315161,114020.0,114010.0,0.04819457]
[1759158704552,2.13301965,114020.0,114010.0,0.04819457]
[1759158704952,2.13301965,114020.0,114010.0,0.13584777]
[1759158705255,2.11315161,114020.0,114010.0,0.13584777]
[1759158705446,2.13302048,114020.0,114010.0,0.13584777]
[1759158706646,2.11315161,114020.0,114010.0,0.13584777]
[1759158707046,2.67664822,114020.0,114010.0,0.13584777]
[1759158710155,2.67652822,114020.0,114010.0,0.13584777]
[1759158710458,2.67648822,114020.0,114010.0,0.04819457]
[1759158710646,2.69636124,114020.0,114010.0,0.04819457]
[1759158710850,2.69629228,114020.0,114010.0,0.01106287]
[1759158711159,1.87841228,114020.0,114010.0,0.01106287]
[1759158711353,1.87841228,114020.0,114010.0,0.04258752]
[1759158711354,2.67637926,114020.0,114010.0,0.04258752]
[1759158711855,1.85853926,114020.0,114010.0,0.04258752]
[1759158712052,1.85853926,114020.0,114010.0,0.01106287]
[1759158712362,1.45860367,114020.0,114010.0,0.09871607]
[1759158712559,2.27644367,114020.0,114010.0,0.09871607]
[1759158712858,1.45860367,114020.0,114010.0,0.09871607]
[1759158713165,2.27640367,114020.0,114010.0,0.09871607]
[1759158713755,2.27644367,114020.0,114010.0,0.09871607]
[1759158714655,1.45860367,114020.0,114010.0,0.01106287]
[1759158714859,1.92734652,114020.0,114010.0,0.03416287]
[1759158715059,2.27640367,114020.0,114010.0,0.03416287]
[1759158715261,1.45860367,114020.0,114010.0,0.03416287]
[1759158715455,2.27640367,114020.0,114010.0,0.03416287]
[1759158715863,1.45860367,114020.0,114010.0,0.12181577]
[1759158716161,1.45860367,114020.0,114010.0,0.13537577]
[1759158716356,2.27636367,114020.0,114010.0,0.13537577]
[1759158716756,2.27640367,114020.0,114010.0,0.13537577]
[1759158717161,2.27640367,114020.0,114010.0,0.04772287]
[1759158717966,2.27640367,114020.0,114010.0,0.03416287]
[1759158718861,1.45860367,114020.0,114010.0,0.03416287]
[1759158719061,2.27640367,114020.0,114010.0,0.03416287]
[1759158719562,1.82800367,114020.0,114010.0,0.03416287]
[1759158719758,1.47894652,114020.0,114010.0,0.12181577]
[1759158719959,1.81697367,114020.0,114010.0,0.13537577]
[1759158722769,0.99917367,114020.0,114010.0,0.13537577]
[1759158723264,1.81697367,114020.0,114010.0,0.13537577]
[1759158723568,0.99917367,114020.0,114010.0,0.13537577]
[1759158723763,1.81697367,114020.0,114010.0,0.13537577]
[1759158723971,1.81697367,114020.0,114010.0,0.01106287]
[1759158727170,1.81693367,114020.0,114010.0,0.01106287]
[1759158729171,1.82093367,114020.0,114010.0,0.01106287]
[1759158729762,1.80193367,114020.0,114010.0,0.01006287]
[1759158729962,1.81093367,114020.0,114010.0,0.01006287]
[1759158730572,1.80193367,114020.0,114010.0,0.01006287]
[1759158730868,1.80993367,114020.0,114010.0,0.01006287]
[1759158732872,2.15899082,114020.0,114010.0,0.01006287]
[1759158733266,1.80993367,114020.0,114010.0,0.01006287]
[1759158733470,1.82967767,114020.0,114010.0,0.01006287]
[1759158733972,2.17873482,114020.0,114010.0,0.01006287]
[1759158734367,0.1200107,114000.0,113990.0,0.06286845]
[1759158734667,2.52094161,114000.0,113990.0,0.06286845]
[1759158734870,0.1200184,113990.0,113980.0,0.15054455]
[1759158735165,0.82994259,113990.0,113980.0,0.15054455]
[1759158735372,0.9934392,113990.0,113980.0,0.15054455]
[1759158735770,0.9934392,113990.0,113980.0,0.17242455]
[1759158735971,1.8000892,113990.0,113980.0,0.18545455]
[1759158736363,1.8111192,113990.0,113980.0,0.18545455]
[1759158736565,1.8161192,113990.0,113980.0,0.17242455]
[1759158736971,0.9984392,113990.0,113980.0,0.17242455]
[1759158737266,1.7124208,113990.0,113980.0,0.18545455]
[1759158738172,1.8100891,113990.0,113980.0,0.18545455]
[1759158738368,0.9924091,113990.0,113980.0,0.18545455]
[1759158738574,1.8100891,113990.0,113980.0,0.18545455]
[1759158739072,1.87941503,113990.0,113980.0,0.18545455]
[1759158739274,1.06173503,113990.0,113980.0,0.18545455]
[1759158739474,1.87941503,113990.0,113980.0,0.18545455]
[1759158740477,1.89044503,113990.0,113980.0,0.17242455]
[1759158743370,1.89044503,113990.0,113980.0,0.15054455]
[1759158743572,1.07276503,113990.0,113980.0,0.15054455]
[1759158743771,1.07276503,113990.0,113980.0,0.17370455]
[1759158743972,1.87937503,113990.0,113980.0,0.18743455]
[1759158744177,1.06173503,113990.0,113980.0,0.1245661]
[1759158744477,1.87937503,113990.0,113980.0,0.1245661]
[1759158744676,1.87941503,113990.0,113980.0,0.1245661]
[1759158744880,1.06173503,113990.0,113980.0,0.1245661]
[1759158745074,1.87937503,113990.0,113980.0,0.1245661]
[1759158745377,1.89040503,113990.0,113980.0,0.1108361]
[1759158747277,0.087676,113980.0,113970.0,0.1244033]
[1759158747478,1.16841926,113980.0,113970.0,0.0876833]
[1759158747784,1.33191587,113980.0,113970.0,0.0876833]
[1759158748683,1.33691587,113980.0,113970.0,0.0876833]
[1759158749377,1.33191587,113980.0,113970.0,0.11916902]
[1759158749579,1.34291587,113980.0,113970.0,0.11916902]
[1759158749881,0.0876914,113960.0,113950.0,0.0876935]
[1759158750178,0.38262287,113960.0,113950.0,0.1245835]
[1759158750685,1.54928002,113960.0,113950.0,0.5245835]
[1759158751084,1.56128002,113960.0,113950.0,0.5245835]
[1759158751982,0.73168002,113960.0,113950.0,0.5245835]
[1759158752178,1.55528002,113960.0,113950.0,0.5245835]
[1759158752385,1.20622287,113960.0,113950.0,0.58745195]
[1759158752683,1.55532002,113960.0,113950.0,0.5245835]
[1759158753686,0.74660352,113960.0,113950.0,0.5245835]
[1759158753984,1.56424352,113960.0,113950.0,0.5245835]
[1759158754172,1.65193492,113960.0,113950.0,0.5245835]
[1759158754482,1.56424352,113960.0,113950.0,0.57177948]
[1759158755882,0.75760352,113960.0,113950.0,0.57177948]
[1759158756078,1.57520352,113960.0,113950.0,0.57177948]
[1759158756278,1.55820352,113960.0,113950.0,0.57177948]
[1759158756583,1.56320352,113960.0,113950.0,0.57177948]
[1759158756783,1.57420352,113960.0,113950.0,0.57177948]
[1759158756984,1.57424352,113960.0,113950.0,0.57177948]
[1759158757280,0.75660352,113960.0,113950.0,0.57177948]
[1759158757481,1.57424352,113960.0,113950.0,0.57177948]
[1759158757778,1.57420352,113960.0,113950.0,0.57177948]
[1759158757982,1.22514637,113960.0,113950.0,0.57177948]
[1759158758785,0.40754637,113960.0,113950.0,0.57177948]
[1759158758985,1.22518637,113960.0,113950.0,0.57177948]
[1759158759178,0.86438637,113960.0,113950.0,0.57177948]
[1759158759580,0.86438637,113960.0,113950.0,0.17177948]
[1759158760278,0.04674637,113960.0,113950.0,0.17177948]
[1759158760474,0.86438637,113960.0,113950.0,0.17177948]
[1759158760680,0.04674637,113960.0,113950.0,0.17177948]
[1759158764891,0.04674637,113960.0,113950.0,0.52083663]
[1759158765085,0.02498637,113960.0,113950.0,0.52083663]
[1759158765486,0.02498637,113960.0,113950.0,0.17177948]
[1759158765887,0.01606287,113960.0,113950.0,0.88163663]
[1759158766088,0.01606287,113960.0,113950.0,1.23444065]
[1759158766290,0.01606287,113960.0,113950.0,1.64657913]
[1759158766785,1.53230931,113980.0,113970.0,0.1245739]
[1759158766986,0.90388592,113980.0,113970.0,0.47373749]
[1759158768095,0.90888592,113980.0,113970.0,0.47373749]
[1759158768391,0.01,113980.0,113970.0,0.93393305]
[1759158768792,0.01,113980.0,113970.0,1.29473305]
[1759158769192,0.01,113980.0,113970.0,2.11221305]
[1759158769696,0.008931,113980.0,113970.0,2.46137664]
[1759158770288,0.06932593,113990.0,113980.0,0.122756]
[1759158770494,0.73179359,114000.0,113990.0,0.03508]
[1759158770795,0.8952902,114000.0,113990.0,0.38424359]
[1759158771092,0.8734602,114000.0,113990.0,0.47191189]
[1759158771293,0.8952902,114000.0,113990.0,0.47191189]
[1759158771593,0.5384902,114000.0,113990.0,0.48091189]
[1759158772193,0.54707964,114000.0,113990.0,0.48091189]
[1759158772494,0.54307964,114000.0,113990.0,0.47191189]
[1759158773501,0.61411749,114000.0,113990.0,0.1227483]
[1759158773693,0.61411749,114000.0,113990.0,0.47191189]
[1759158774695,0.2649539,114000.0,113990.0,0.47191189]
[1759158774895,0.61411749,114000.0,113990.0,0.47191189]
[1759158775397,0.2649539,114000.0,113990.0,0.47191189]
[1759158775597,0.61411749,114000.0,113990.0,0.47191189]
[1759158775987,0.60552805,114000.0,113990.0,0.47191189]
[1759158776395,0.23453446,114000.0,113990.0,0.47191189]
[1759158776694,0.07103785,114000.0,113990.0,1.23271189]
[1759158776896,0.3608,114010.0,114000.0,0.1227407]
[1759158777094,0.54612661,114010.0,114000.0,0.84469559]
[1759158777295,0.16349661,114010.0,114000.0,1.66193559]
[1759158777888,0.23356067,114010.0,114000.0,0.96360841]
[1759158778092,0.23356067,114010.0,114000.0,0.50716841]
[1759158778295,0.24556067,114010.0,114000.0,2.04769559]
[1759158778694,0.24556067,114010.0,114000.0,2.44769559]
[1759158778894,0.24556067,114010.0,114000.0,1.63049559]
[1759158779093,0.24556067,114010.0,114000.0,2.44765559]
[1759158779697,0.24556067,114010.0,114000.0,1.63049559]
[1759158779898,0.24556067,114010.0,114000.0,2.44761559]
[1759158780902,0.24556067,114010.0,114000.0,1.74928841]
[1759158781105,0.61655426,114010.0,114000.0,0.93216841]
[1759158781308,0.61655426,114010.0,114000.0,2.098412]
[1759158781599,1.41417085,114010.0,114000.0,0.17136841]
[1759158781800,1.07891726,114010.0,114000.0,0.1347307]
[1759158782000,1.42808085,114010.0,114000.0,0.1347307]
[1759158782204,1.07891726,114010.0,114000.0,0.1347307]
[1759158782594,0.99126426,114010.0,114000.0,0.1347307]
[1759158782794,0.97735426,114010.0,114000.0,0.1477407]
[1759158784206,0.97735426,114010.0,114000.0,0.49690429]
[1759158784907,0.97735426,114010.0,114000.0,0.520516]
[1759158785100,1.06500726,114010.0,114000.0,0.520516]
[1759158785301,1.06500726,114010.0,114000.0,0.54413297]
[1759158785700,1.06500726,114010.0,114000.0,0.19496938]
[1759158786200,0.97735426,114010.0,114000.0,0.19496938]
[1759158786607,1.07803726,114010.0,114000.0,0.09429868]
[1759158786802,1.06500726,114010.0,114000.0,0.19496938]
[1759158787697,1.06500726,114010.0,114000.0,0.54413297]
[1759158787901,0.97735426,114010.0,114000.0,0.54413297]
[1759158788302,0.97735426,114010.0,114000.0,0.19496938]
[1759158788607,0.97735426,114010.0,114000.0,0.54413297]
[1759158789598,1.06500716,114010.0,114000.0,0.54413297]
[1759158790002,1.06500716,114010.0,114000.0,0.19496938]
[1759158790202,1.06500716,114010.0,114000.0,0.54413297]
[1759158790612,1.06500716,114010.0,114000.0,0.19496938]
[1759158791209,0.71584357,114010.0,114000.0,0.54413297]
[1759158791412,1.06500716,114010.0,114000.0,0.54413297]
[1759158792910,1.06500716,114010.0,114000.0,0.19496938]
[1759158793112,1.07803716,114010.0,114000.0,0.09429868]
[1759158793312,1.42720075,114010.0,114000.0,0.18195928]
[1759158794614,1.42720075,114010.0,114000.0,0.09429868]
[1759158794914,1.42720075,114010.0,114000.0,0.21339933]
[1759158795215,1.42720075,114010.0,114000.0,0.09429868]
[1759158795512,1.42720075,114010.0,114000.0,0.21340585]
[1759158795720,1.42720075,114010.0,114000.0,0.16617717]
[1759158795913,0.1225361,114000.0,113980.0,0.01301]
[1759158796217,1.99288548,113990.0,113980.0,0.02293]
[1759158796612,2.39288548,113990.0,113980.0,0.02293]
[1759158797103,1.95601359,113990.0,113980.0,0.1237529]
[1759158797309,1.22696189,113990.0,113980.0,0.1237529]
[1759158797506,2.04368189,113990.0,113980.0,0.1237529]
[1759158798815,1.96372359,113990.0,113980.0,0.1245829]
[1759158799218,2.05135189,113990.0,113980.0,0.1245829]
[1759158800019,2.41215189,113990.0,113980.0,0.03691]
[1759158800214,2.42048189,113990.0,113980.0,0.124586]
[1759158802714,1.51609359,113990.0,113980.0,0.124586]
[1759158802909,1.92444359,113990.0,113980.0,0.124586]
[1759158803114,2.01211199,113990.0,113980.0,0.124586]
[1759158803712,2.02044199,113990.0,113980.0,0.124586]
[1759158804520,2.01211199,113990.0,113980.0,0.124586]
[1759158804721,1.6629484,113990.0,113980.0,0.124586]
[1759158804910,2.01211199,113990.0,113980.0,0.124586]
[1759158805314,1.10776359,113990.0,113980.0,0.124586]
[1759158805724,1.92444359,113990.0,113980.0,0.124586]
[1759158806022,2.01211199,113990.0,113980.0,0.124586]
[1759158807713,2.36960558,113990.0,113980.0,0.124586]
[1759158807918,2.02044199,113990.0,113980.0,0.111606]
[1759158808218,2.01211199,113990.0,113980.0,0.124586]
[1759158808918,1.92440359,113990.0,113980.0,0.124586]
[1759158809925,1.92436359,113990.0,113980.0,0.124586]
[1759158811323,1.5752,113990.0,113980.0,0.124586]
[1759158811521,1.92436359,113990.0,113980.0,0.124586]
[1759158812914,1.5752,113990.0,113980.0,0.124586]
[1759158813224,0.7586,113990.0,113980.0,0.124586]
[1759158813420,1.10776359,113990.0,113980.0,0.47374959]
[1759158813727,1.92432359,113990.0,113980.0,0.47374959]
[1759158813928,1.10776359,113990.0,113980.0,0.47374959]
[1759158814119,1.10776359,113990.0,113980.0,0.124586]
[1759158814317,0.037,113990.0,113980.0,0.82291318]
[1759158814522,0.016,113990.0,113980.0,0.82291318]
[1759158815125,0.016,113990.0,113980.0,0.124586]
[1759158815323,0.016,113990.0,113980.0,2.03943318]
[1759158816123,0.016,113990.0,113980.0,1.341106]
[1759158816318,0.016,113990.0,113980.0,2.03943318]
[1759158817116,0.016,113990.0,113980.0,2.40023318]
[1759158817322,0.016,113990.0,113980.0,1.701906]
[1759158817525,0.016,113990.0,113980.0,2.40023318]
[1759158819525,0.016,113990.0,113980.0,2.00023318]
[1759158820225,0.016,113990.0,113980.0,2.40023318]
[1759158820528,0.016,113990.0,113980.0,2.00023318]
[1759158821325,0.016,113990.0,113980.0,2.06310163]
[1759158825542,0.09260406,114010.0,114000.0,0.03449]
[1759158825744,0.07006406,114010.0,114000.0,1.63671768]
[1759158825940,0.39207605,114020.0,114010.0,0.1221428]
[1759158826135,0.74123964,114020.0,114010.0,0.51857469]
[1759158826337,0.39207605,114020.0,114010.0,0.1694111]
[1759158826539,0.39207605,114020.0,114010.0,0.20091199]
[1759158827839,0.47972125,114020.0,114010.0,0.20091199]
[1759158828041,0.54872044,114020.0,114010.0,0.20091199]
[1759158828339,0.46107524,114020.0,114010.0,0.20091199]
[1759158828843,0.46507524,114020.0,114010.0,0.15364369]
[1759158829143,0.55972044,114020.0,114010.0,0.16464369]
[1759158829334,0.90864055,114020.0,114010.0,0.16464369]
[1759158829534,0.92184055,114020.0,114010.0,0.15166369]
[1759158830335,0.90864055,114020.0,114010.0,0.16554369]
[1759158834947,0.82099535,114020.0,114010.0,0.16554369]
[1759158835147,1.28803524,114020.0,114010.0,0.16554369]
[1759158835346,1.63695535,114020.0,114010.0,0.16554369]
[1759158835843,1.72460045,114020.0,114010.0,0.16554369]
[1759158837144,1.74434785,114020.0,114010.0,0.1340428]
[1759158837945,0.84074275,114020.0,114010.0,0.1340428]
[1759158838145,1.39538774,114020.0,114010.0,0.1340428]
[1759158838346,1.74430785,114020.0,114010.0,0.1340428]
[1759158839751,1.39538774,114020.0,114010.0,0.1340428]
[1759158840047,1.74430785,114020.0,114010.0,0.1340428]
[1759158842548,1.75750785,114020.0,114010.0,0.1201628]
[1759158843650,1.75750785,114020.0,114010.0,0.1340428]
[1759158843844,0.94158785,114020.0,114010.0,0.1340428]
[1759158844045,1.75726785,114020.0,114010.0,0.1340428]
[1759158846651,1.75726785,114020.0,114010.0,0.1201628]
[1759158847148,1.75726785,114020.0,114010.0,0.03251]
[1759158847350,2.15726785,114020.0,114010.0,0.011]
[1759158847654,1.34158785,114020.0,114010.0,0.011]
[1759158848045,2.15714785,114020.0,114010.0,0.0986528]
[1759158848445,2.15714785,114020.0,114010.0,0.1219728]
[1759158849045,2.13740045,114020.0,114010.0,0.0986528]
[1759158849249,2.13740045,114020.0,114010.0,0.011]
[1759158850157,2.15715187,114020.0,114010.0,0.011]
[1759158850350,1.34159187,114020.0,114010.0,0.011]
[1759158850550,2.15711187,114020.0,114010.0,0.011]
[1759158851854,0.10086,114000.0,113990.0,0.0472683]